bitfinex/quotes_SOLUSD_20260220
["timestamp","ask_amount","ask_price","bid_price","bid_amount"]
[1771579979639,0.4543032,84.349,84.313,0.45729313]
[1771579979826,11.85492766,84.354,84.313,0.45729313]
[1771579979827,4.09979345,84.34,84.313,0.45729313]
[1771579981131,4.09979345,84.34,84.31,3.64549025]
[1771579981132,11.8569108,84.339,84.314,0.45729313]
[1771579981333,0.4543032,84.329,84.306,12.31871834]
[1771579981532,0.4543032,84.329,84.301,12.31944827]
[1771579981739,0.4543032,84.329,84.302,0.45729313]
[1771579982851,0.4543032,84.319,84.295,0.45729313]
[1771579985157,0.4543032,84.319,84.297,0.47332821]
[1771579986157,0.46949305,84.324,84.299,0.47332821]
[1771579989154,0.47469825,84.329,84.301,0.48192583]
[1771579989456,0.47469825,84.339,84.301,0.48192583]
[1771579991241,0.47469825,84.337,84.303,0.48192583]
[1771579992764,0.47469825,84.319,84.293,11.8633813]
[1771579993138,0.47469825,84.319,84.294,0.48192583]
[1771579993559,0.47469825,84.319,84.295,11.86309982]
[1771579993956,0.47469825,84.319,84.29,0.2]
[1771579994163,0.47469825,84.318,84.291,0.48192583]
[1771579994361,0.47469825,84.309,84.29,0.2]
[1771579994542,0.47469825,84.299,84.27,0.2]
[1771579994747,0.27469825,84.289,84.27,0.2]
[1771579996064,0.27469825,84.279,84.27,0.2]
[1771579996266,3.64549025,84.27,84.26,0.2]
[1771579996449,11.86408504,84.288,84.26,0.2]
[1771579996450,3.9201885,84.28,84.26,0.2]
[1771579996654,3.49,85.558,84.261,0.48192583]
[1771579996655,0.27469825,84.287,84.261,0.48192583]
[1771579996958,0.27469825,84.293,84.261,0.48192583]
[1771579997173,3.64549025,84.29,84.261,0.48192583]
[1771579997545,15.50940478,84.29,84.261,0.48192583]
[1771579997875,0.27469825,84.289,84.261,0.48192583]
[1771579998167,3.64549025,84.28,84.26,0.2]
[1771579998465,0.27469825,84.283,84.26,0.2]
[1771579998765,0.27469825,84.279,84.26,0.2]
[1771579999564,3.64549025,84.27,84.26,0.2]
[1771579999777,0.27469825,84.279,84.26,0.2]
[1771580000146,11.86549277,84.278,84.26,0.2]
[1771580000458,11.86489836,84.283,84.261,0.48192583]
[1771580001048,11.86420703,84.288,84.261,0.48192583]
[1771580001251,0.27469825,84.297,84.262,0.48192583]
[1771580001448,3.64549025,84.29,84.262,0.48192583]
[1771580003167,3.64549025,84.29,84.26,3.84549025]
[1771580003168,3.64549025,84.29,84.264,0.48192583]
[1771580003351,11.86394428,84.289,84.264,0.48192583]
[1771580003961,12.13864253,84.289,84.264,0.48192583]
[1771580006283,29.65576776,84.301,84.271,0.48192583]
[1771580006452,0.27469825,84.304,84.271,0.48192583]
[1771580006852,3.64549025,84.3,84.271,0.48192583]
[1771580007747,11.86253692,84.299,84.271,0.48192583]
[1771580008566,11.85972319,84.319,84.291,0.48192583]
[1771580009948,11.8591104,84.324,84.301,0.48192583]
[1771580011468,11.8591104,84.324,84.27,3.64549025]
[1771580011469,0.27469825,84.311,84.281,0.48192583]
[1771580013267,0.27469825,84.309,84.281,0.48192583]
[1771580013471,0.27469825,84.307,84.281,0.48192583]
[1771580014054,0.27469825,84.307,84.282,11.86492964]
[1771580014256,3.64549025,84.3,84.282,0.48192583]
[1771580014560,0.27469825,84.307,84.282,0.48192583]
[1771580015471,11.86155196,84.306,84.282,0.48192583]
[1771580015653,3.64549025,84.31,84.283,11.86478886]
[1771580015860,11.86093771,84.311,84.284,0.48192583]
[1771580016571,3.65281473,84.3,84.264,0.48192583]
[1771580016759,0.27469825,84.299,84.271,0.48192583]
[1771580017569,0.27469825,84.309,84.281,0.49191149]
[1771580017755,3.65281473,84.31,84.281,0.49191149]
[1771580017960,0.27469825,84.309,84.281,0.49191149]
[1771580019575,11.86094844,84.311,84.291,0.49191149]
[1771580020880,11.86094844,84.311,84.29,3.65281473]
[1771580020881,0.27469825,84.309,84.283,0.49191149]
[1771580021665,0.27469825,84.307,84.283,0.49191149]
[1771580021865,0.27469825,84.307,84.271,0.49191149]
[1771580022078,0.27469825,84.299,84.271,0.49191149]
[1771580022383,0.27469825,84.299,84.272,0.49191149]
[1771580024281,11.86127057,84.308,84.274,0.49191149]
[1771580024496,0.27469825,84.312,84.281,0.49191149]
[1771580024497,12.13541215,84.312,84.281,0.49191149]
[1771580025166,11.8607139,84.312,84.291,0.49191149]
[1771580025484,41.51248351,84.312,84.291,0.49191149]
[1771580025674,41.51248351,84.312,84.28,3.65281473]
[1771580025675,0.27469825,84.311,84.28,3.65281473]
[1771580025879,0.27469825,84.309,84.281,0.49191149]
[1771580026766,0.27469825,84.307,84.281,0.49191149]
[1771580028300,0.27469825,84.299,84.276,0.49191149]
[1771580028471,0.27469825,84.299,84.271,0.49191149]
[1771580028864,12.13610952,84.307,84.273,0.49191149]
[1771580029064,12.13610952,84.307,84.281,0.49191149]
[1771580029676,11.86141127,84.307,84.281,0.49191149]
[1771580029974,0.27469825,84.306,84.281,0.49191149]
[1771580030375,29.65317644,84.308,84.281,0.49191149]
[1771580030376,0.27469825,84.304,84.281,0.49191149]
[1771580030912,0.27469825,84.299,84.273,0.49191149]
[1771580031369,0.27469825,84.299,84.261,0.49191149]
[1771580031793,3.92751298,84.29,84.261,0.49191149]
[1771580031991,0.27469825,84.289,84.261,0.49191149]
[1771580032485,3.92751298,84.3,84.271,0.49191149]
[1771580032679,0.27469825,84.3,84.271,0.49191149]
[1771580034588,0.27469825,84.298,84.271,0.49191149]
[1771580036379,11.86175134,84.305,84.281,0.49191149]
[1771580036714,3.92751298,84.31,84.281,0.49191149]
[1771580036715,0.27469825,84.308,84.281,0.49191149]
[1771580037496,0.27469825,84.289,84.262,0.49191149]
[1771580037795,3.92751298,84.3,84.27,3.65281473]
[1771580037972,0.27469825,84.307,84.271,0.49191149]
[1771580038995,0.27469825,84.299,84.273,0.49191149]
[1771580040491,12.13737589,84.298,84.273,0.49191149]
[1771580040984,11.86267764,84.298,84.273,0.49191149]
[1771580041184,11.86267764,84.298,84.275,0.49191149]
[1771580042578,29.92857816,84.306,84.275,0.49191149]
[1771580042579,12.13639091,84.305,84.275,0.49191149]
[1771580042995,0.27469825,84.304,84.275,0.49191149]
[1771580046405,3.65281473,84.32,84.281,0.48641908]
[1771580046600,11.85972319,84.319,84.301,0.48641908]
[1771580047417,11.85972319,84.319,84.295,0.48112607]
[1771580047703,11.85972319,84.319,84.301,0.48112607]
[1771580048106,0.27469825,84.318,84.293,0.48112607]
[1771580048296,0.27469825,84.318,84.287,0.48112607]
[1771580050001,11.8600045,84.317,84.291,0.48112607]
[1771580050208,0.27469825,84.316,84.291,0.48112607]
[1771580052199,3.92751298,84.33,84.293,0.48112607]
[1771580052404,3.92751298,84.33,84.301,0.48112607]
[1771580052916,11.85831683,84.329,84.301,0.48112607]
[1771580054296,11.85747317,84.335,84.303,0.48112607]
[1771580056106,29.6430217,84.337,84.304,11.86183336]
[1771580056318,29.6430217,84.337,84.305,0.48112607]
[1771580057009,11.8569108,84.339,84.311,0.48112607]
[1771580057597,11.8569108,84.339,84.321,0.48112607]
[1771580058409,0.27469825,84.348,84.316,0.48112607]
[1771580058607,0.27469825,84.339,84.311,0.48112607]
[1771580061411,11.85705138,84.338,84.312,0.48112607]
[1771580061806,0.27469825,84.337,84.312,0.48112607]
[1771580065816,0.27469825,84.337,84.314,0.48112607]
[1771580069711,11.8555051,84.349,84.321,0.48112607]
[1771580069916,11.85424026,84.358,84.331,0.48112607]
[1771580070117,11.8537411,84.362,84.341,0.48112607]
[1771580070423,11.8537411,84.362,84.33,3.65281473]
[1771580070424,11.85290635,84.368,84.35,4.1339408]
[1771580070613,11.85290635,84.368,84.351,0.48112607]
[1771580071323,0.27469825,84.367,84.33,3.65281473]
[1771580071619,0.27469825,84.367,84.34,3.65281473]
[1771580072008,0.49962965,84.365,84.34,3.65281473]
[1771580072617,11.85259246,84.37,84.35,3.65281473]
[1771580073421,11.85259246,84.37,84.35,4.1339408]
[1771580073804,0.49962965,84.359,84.331,0.48112607]
[1771580074021,11.85424026,84.358,84.331,0.48112607]
[1771580074519,12.35254464,84.368,84.341,0.48112607]
[1771580074708,0.49962965,84.367,84.35,3.65281473]
[1771580075105,11.85291499,84.368,84.349,0.48112607]
[1771580075306,12.35254464,84.368,84.349,0.48112607]
[1771580076716,0.49962965,84.367,84.349,0.48112607]
[1771580080933,11.85311618,84.366,84.349,0.48112607]
[1771580081430,3.64772716,84.39,84.361,0.46812816]
[1771580081431,0.48660802,84.382,84.361,0.46812816]
[1771580081616,0.48660802,84.388,84.361,0.46812816]
[1771580081929,0.48660802,84.388,84.36,3.64772716]
[1771580081930,11.848622,84.398,84.371,0.46812816]
[1771580082137,11.848622,84.398,84.381,0.46812816]
[1771580082427,12.33523002,84.398,84.381,0.46812816]
[1771580082726,0.48660802,84.397,84.371,0.46812816]
[1771580083623,0.1,84.4,84.381,0.46812816]
[1771580084622,11.94847421,84.4,84.381,0.46812816]
[1771580086935,0.1,84.4,84.391,0.46812816]
[1771580087318,0.1,84.4,84.39,3.64772716]
[1771580087519,0.1,84.4,84.38,3.64772716]
[1771580087731,0.48660802,84.399,84.37,3.64772716]
[1771580088031,0.48660802,84.399,84.361,11.8538187]
[1771580088243,0.48660802,84.399,84.37,3.64772716]
[1771580089439,0.48660802,84.397,84.371,0.46812816]
[1771580090834,11.84890279,84.396,84.371,0.46812816]
[1771580091041,0.48660802,84.395,84.371,0.46812816]
[1771580091218,0.48660802,84.395,84.364,0.46812816]
[1771580092640,0.48660802,84.393,84.364,0.46812816]
[1771580095943,0.48660802,84.391,84.364,0.46812816]
[1771580097040,0.48660802,84.389,84.364,0.46812816]
[1771580100149,0.48660802,84.387,84.364,0.46812816]
[1771580100643,0.58660802,84.43,84.381,0.46812816]
[1771580100944,0.48660802,84.428,84.391,0.46812816]
[1771580101446,0.48660802,84.428,84.39,3.64772716]
[1771580101447,0.48660802,84.428,84.401,0.46812816]
[1771580101830,0.1,84.43,84.411,0.46812816]
[1771580102040,53.4,84.44,84.421,0.46812816]
[1771580102240,50.14589094,84.44,84.431,0.46812816]
[1771580102445,0.48660802,84.476,84.431,0.46812816]
[1771580102744,11.83726133,84.479,84.46,3.64772716]
[1771580102954,0.1,84.49,84.47,3.64772716]
[1771580103246,0.48660802,84.489,84.46,3.64772716]
[1771580104131,11.9357597,84.49,84.46,3.64772716]
[1771580104132,11.83600037,84.488,84.46,3.64772716]
[1771580104348,0.49379576,84.487,84.46,3.64772716]
[1771580105959,0.49379576,84.487,84.457,12.0482123]
[1771580105960,0.49379576,84.479,84.443,0.20791936]
[1771580106142,0.49379576,84.479,84.45,3.64772716]
[1771580108151,0.45285787,84.477,84.45,3.64772716]
[1771580110065,0.45285787,84.475,84.45,3.64772716]
[1771580111562,0.45285787,84.475,84.451,0.20791936]
[1771580114339,0.45285787,84.473,84.45,3.64772716]
[1771580115569,0.45285787,84.469,84.43,3.64772716]
[1771580116272,11.83824225,84.472,84.43,3.64772716]
[1771580116273,0.45285787,84.459,84.43,3.64772716]
[1771580117448,0.45285787,84.457,84.43,3.64772716]
[1771580118850,0.45285787,84.449,84.42,3.85564652]
[1771580119057,0.45285787,84.449,84.421,0.20791936]
[1771580119256,0.45285787,84.449,84.43,3.64772716]
[1771580119671,0.45285787,84.449,84.401,0.20791936]
[1771580119855,0.45285787,84.439,84.401,11.84820085]
[1771580120060,0.45285787,84.439,84.4,3.64772716]
[1771580120456,0.45285787,84.439,84.4,3.85564652]
[1771580121565,0.45285787,84.437,84.4,3.85564652]
[1771580122670,0.45285787,84.429,84.4,3.64772716]
[1771580123048,0.45285787,84.429,84.401,11.84820085]
[1771580123254,0.45285787,84.429,84.401,12.05612021]
[1771580123460,0.45285787,84.429,84.402,0.20791936]
[1771580123851,41.45053174,84.438,84.39,3.64772716]
[1771580123852,11.84300907,84.438,84.411,0.4733172]
[1771580124159,11.84300907,84.438,84.421,0.4733172]
[1771580124367,11.84300907,84.438,84.411,0.4733172]
[1771580125770,3.64772716,84.44,84.411,0.4733172]
[1771580125973,0.45285787,84.439,84.411,0.4733172]
[1771580126762,0.45285787,84.437,84.411,0.4733172]
[1771580128275,11.84239295,84.443,84.413,0.4733172]
[1771580128571,11.84031986,84.458,84.421,0.4733172]
[1771580128774,0.45285787,84.459,84.421,0.4733172]
[1771580128775,0.45285787,84.459,84.43,3.64772716]
[1771580128979,0.45285787,84.459,84.431,0.4733172]
[1771580129160,0.45285787,84.457,84.431,0.4733172]
[1771580134576,11.84048498,84.456,84.431,0.4733172]
[1771580134782,0.45285787,84.455,84.431,0.4733172]
[1771580136373,0.45285787,84.453,84.431,0.4733172]
[1771580137069,0.45285787,84.453,84.429,11.84414134]
[1771580137270,0.45285787,84.453,84.43,0.45202718]
[1771580138289,0.45285787,84.453,84.43,4.09975434]
[1771580138888,0.45285787,84.453,84.432,0.45202718]
[1771580141478,0.45285787,84.453,84.421,0.45202718]
[1771580141808,0.45285787,84.453,84.422,0.45202718]
[1771580142185,0.46951547,84.452,84.422,0.45202718]
[1771580143494,0.46951547,84.452,84.431,12.29594071]
[1771580144473,0.46951547,84.452,84.431,11.84391353]
[1771580144690,0.46951547,84.452,84.432,0.45202718]
[1771580145594,0.46951547,84.451,84.426,12.29670058]
[1771580145775,0.46951547,84.451,84.427,0.45202718]
[1771580146694,0.46951547,84.451,84.429,0.45202718]
[1771580148575,0.46951547,84.451,84.43,11.84413123]
[1771580150070,0.46951547,84.451,84.43,0.45202718]
[1771580150771,0.46951547,84.451,84.422,0.45202718]
[1771580150977,0.46951547,84.449,84.422,0.45202718]
[1771580152190,0.46951547,84.449,84.424,0.45202718]
[1771580153404,0.46951547,84.449,84.426,0.45202718]
[1771580156182,0.46951547,84.439,84.405,0.45202718]
[1771580156480,0.46951547,84.429,84.405,0.45202718]
[1771580156704,0.46951547,84.429,84.4,11.84826999]
[1771580156705,0.46951547,84.429,84.4,12.30029717]
[1771580156894,0.46951547,84.429,84.4,15.94075841]
[1771580157199,0.46951547,84.429,84.401,0.45202718]
[1771580158493,11.8444118,84.428,84.401,0.45202718]
[1771580158802,0.46951547,84.427,84.403,0.45202718]
[1771580160900,0.46951547,84.425,84.403,0.45202718]
[1771580161090,0.46951547,84.425,84.393,0.45202718]
[1771580161292,0.46951547,84.419,84.39,3.64046124]
[1771580161506,0.46951547,84.419,84.385,11.85040775]
[1771580161707,3.64046124,84.42,84.376,11.85168821]
[1771580161708,0.46951547,84.409,84.376,11.85168821]
[1771580163614,0.46951547,84.399,84.366,0.45202718]
[1771580164706,0.49726205,84.389,84.36,3.64046124]
[1771580165299,0.49726205,84.389,84.361,0.47598591]
[1771580166100,0.49726205,84.387,84.361,0.47598591]
[1771580168304,0.49726205,84.387,84.363,0.49032607]
[1771580170503,0.48954786,84.385,84.36,3.64046124]
[1771580170710,0.48954786,84.385,84.361,0.49032607]
[1771580170917,0.48954786,84.385,84.362,0.49032607]
[1771580174516,0.48954786,84.385,84.37,3.64046124]
[1771580174721,0.48954786,84.407,84.381,0.49032607]
[1771580175404,0.48954786,84.405,84.381,0.49032607]
[1771580177321,0.48954786,84.405,84.373,11.85209336]
[1771580177322,0.48954786,84.405,84.376,0.49032607]
[1771580177526,0.48954786,84.389,84.36,3.64046124]
[1771580177723,0.48954786,84.389,84.361,0.49032607]
[1771580178110,0.48954786,84.394,84.371,0.49032607]
[1771580178303,0.48954786,84.399,84.371,0.49032607]
[1771580179526,0.48954786,84.397,84.372,0.49032607]
[1771580179737,0.48954786,84.397,84.37,3.64046124]
[1771580179918,0.48954786,84.397,84.371,0.49032607]
[1771580181326,0.48954786,84.397,84.371,12.34273981]
[1771580182117,0.48954786,84.395,84.372,0.49032607]
[1771580186334,0.48954786,84.389,84.361,0.49032607]
[1771580186523,0.48954786,84.379,84.35,3.64046124]
[1771580186731,0.48954786,84.379,84.35,4.13078731]
[1771580187033,0.48954786,84.379,84.351,0.49032607]
[1771580187627,0.48954786,84.389,84.361,0.49032607]
[1771580188736,0.48954786,84.387,84.361,0.49032607]
[1771580188940,0.48954786,84.387,84.357,11.8543498]
[1771580189238,0.48954786,84.387,84.357,0.49032607]
[1771580189836,0.48954786,84.387,84.356,11.85445945]
[1771580190243,0.48954786,84.387,84.357,0.49032607]
[1771580190932,0.48954786,84.387,84.361,0.49032607]
[1771580191134,0.48954786,84.386,84.361,0.49032607]
[1771580191637,0.48954786,84.386,84.358,11.85424026]
[1771580192639,0.48954786,84.379,84.358,11.85424026]
[1771580194842,0.48954786,84.379,84.358,0.49032607]
[1771580197424,0.45351836,84.369,84.342,0.45783972]
[1771580198832,0.45351836,84.369,84.34,11.94457692]
[1771580199030,0.45351836,84.359,84.34,11.94457692]
[1771580199425,0.45351836,84.359,84.34,0.2]
[1771580201032,0.45351836,84.369,84.341,0.45783972]
[1771580201233,0.45351836,84.368,84.341,0.45783972]
[1771580201644,29.62535934,84.388,84.341,0.45783972]
[1771580201645,0.45351836,84.374,84.341,0.45783972]
[1771580201830,3.6489398,84.37,84.341,0.45783972]
[1771580202037,0.45351836,84.369,84.341,0.45783972]
[1771580203957,0.45351836,84.367,84.341,0.45783972]
[1771580205247,0.45351836,84.365,84.341,0.45783972]
[1771580208449,3.6489398,84.39,84.351,0.45783972]
[1771580208450,0.45351836,84.383,84.351,0.45783972]
[1771580208651,11.8498388,84.39,84.361,0.45783972]
[1771580208859,0.45351836,84.389,84.361,0.45783972]
[1771580213260,0.45351836,84.387,84.361,0.45783972]
[1771580217248,0.45351836,84.385,84.361,0.45783972]
[1771580221161,0.45351836,84.383,84.361,0.45783972]
[1771580222958,0.45351836,84.383,84.34,0.2]
[1771580222959,0.45351836,84.379,84.341,0.45783972]
[1771580223150,0.45351836,84.379,84.34,3.8489398]
[1771580223151,0.45351836,84.369,84.34,4.30677952]
[1771580223352,0.45351836,84.369,84.341,0.45783972]
[1771580224260,0.45351836,84.369,84.341,11.85662963]
[1771580224456,0.45351836,84.369,84.342,0.49660581]
[1771580224670,4.14231887,84.38,84.351,0.49660581]
[1771580224849,11.85086866,84.382,84.361,0.49660581]
[1771580225047,0.49337907,84.385,84.362,0.49660581]
[1771580225250,0.49337907,84.383,84.354,0.49660581]
[1771580225460,0.49337907,84.383,84.351,11.85510743]
[1771580225754,0.49337907,84.383,84.361,0.49660581]
[1771580226266,11.85007499,84.388,84.371,0.49660581]
[1771580226463,0.49337907,84.392,84.371,0.49660581]
[1771580226870,0.49337907,84.419,84.381,0.49660581]
[1771580227172,0.4650188,84.417,84.391,0.46615751]
[1771580229763,0.4650188,84.409,84.385,0.46615751]
[1771580229967,0.4650188,84.409,84.382,11.85086866]
[1771580231169,0.4650188,84.409,84.382,12.31702617]
[1771580232165,0.4650188,84.409,84.383,0.46615751]
[1771580235373,0.4650188,84.407,84.383,0.46615751]
[1771580237776,0.4650188,84.405,84.38,3.6489398]
[1771580237972,0.4650188,84.405,84.36,3.6489398]
[1771580237973,0.4650188,84.405,84.372,0.46615751]
[1771580238159,0.4650188,84.405,84.38,3.6489398]
[1771580240177,0.4650188,84.429,84.385,0.46615751]
[1771580240391,0.4650188,84.429,84.39,3.6489398]
[1771580240679,53.38,84.483,84.311,0.46615751]
[1771580240680,5.94105461,84.318,84.311,0.46615751]
[1771580240878,5.36086188,84.448,84.311,0.46615751]
[1771580240879,0.4650188,84.339,84.311,0.46615751]
[1771580241087,0.4650188,84.352,84.331,0.46615751]
[1771580242679,3.6489398,84.36,84.312,0.46615751]
[1771580242680,0.4650188,84.35,84.312,0.46615751]
[1771580242882,0.4650188,84.349,84.321,0.46615751]
[1771580245093,0.4650188,84.347,84.321,0.46615751]
[1771580247581,11.85592677,84.346,84.321,0.46615751]
[1771580247783,0.4650188,84.345,84.321,0.46615751]
[1771580248478,11.85592677,84.346,84.321,0.46615751]
[1771580248878,0.4650188,84.345,84.321,0.46615751]
[1771580249574,3.6489398,84.34,84.321,0.46615751]
[1771580249980,15.50579354,84.34,84.321,0.46615751]
[1771580250496,12.32122831,84.344,84.321,0.46615751]
[1771580250798,0.4650188,84.343,84.321,0.46615751]
[1771580250990,3.6489398,84.34,84.321,0.46615751]
[1771580251373,0.4650188,84.343,84.321,0.46615751]
[1771580257303,11.85648905,84.342,84.321,0.46615751]
[1771580258482,0.4650188,84.343,84.321,0.46615751]
[1771580258681,3.6489398,84.34,84.321,0.46615751]
[1771580261929,3.65044995,84.34,84.321,0.46615751]
[1771580265406,4.22389276,84.34,84.321,0.46615751]
[1771580267292,0.57344281,84.356,84.321,0.46615751]
[1771580267500,3.65044995,84.34,84.321,0.46615751]
[1771580268497,0.57344281,84.349,84.322,0.56587724]
[1771580270194,0.57344281,84.349,84.312,29.65150982]
[1771580270195,0.57344281,84.347,84.324,0.56587724]
[1771580272918,0.57344281,84.345,84.324,0.56587724]
[1771580276205,0.57344281,84.345,84.319,11.85968627]
[1771580276206,0.57344281,84.329,84.31,0.2]
[1771580276423,0.57344281,84.329,84.31,0.76587724]
[1771580276619,0.57344281,84.329,84.311,0.56587724]
[1771580277022,0.57344281,84.329,84.312,0.56587724]
[1771580277409,0.57344281,84.339,84.312,0.56587724]
[1771580278226,11.85567197,84.348,84.314,0.56587724]
[1771580280042,12.42911478,84.348,84.316,0.56587724]
[1771580280331,0.57344281,84.347,84.316,0.56587724]
[1771580280704,0.57344281,84.399,84.34,3.65044995]
[1771580280924,0.57344281,84.379,84.34,3.65044995]
[1771580282118,0.57344281,84.377,84.341,11.85662963]
[1771580282615,0.57344281,84.387,84.351,0.56587724]
[1771580284521,0.57344281,84.387,84.35,3.65044995]
[1771580284522,0.57344281,84.387,84.353,0.7216877]
[1771580285532,59.61340746,84.439,84.361,0.7216877]
[1771580285533,3.65044995,84.4,84.361,0.7216877]
[1771580285720,0.71425463,84.397,84.361,0.7216877]
[1771580286029,0.71425463,84.397,84.371,0.7216877]
[1771580286419,0.71425463,84.397,84.373,0.7216877]
[1771580287533,0.73024113,84.405,84.373,0.7216877]
[1771580287737,9.44,105.1,84.372,11.85227326]
[1771580287738,0.73024113,84.424,84.391,0.71076428]
[1771580288437,0.83024113,84.43,84.403,0.71076428]
[1771580289521,0.83024113,84.43,84.405,0.71076428]
[1771580291729,0.83024113,84.43,84.372,59.26136633]
[1771580291730,0.73024113,84.483,84.422,0.71076428]
[1771580291925,0.73024113,84.459,84.431,0.71076428]
[1771580292122,0.73024113,84.439,84.406,11.84749899]
[1771580292333,0.73024113,84.429,84.396,0.71076428]
[1771580292527,0.73024113,84.419,84.396,0.71076428]
[1771580293541,0.73024113,84.419,84.397,11.84876239]
[1771580294113,0.73024113,84.419,84.397,12.55952667]
[1771580295241,0.73024113,84.419,84.39,3.65044995]
[1771580295242,0.73024113,84.426,84.401,0.71076428]
[1771580296433,11.84355146,84.435,84.411,0.71076428]
[1771580296434,0.73024113,84.435,84.411,0.71076428]
[1771580297432,0.73024113,84.429,84.402,0.71076428]
[1771580299542,0.73024113,84.429,84.404,0.71076428]
[1771580300040,3.65044995,84.46,84.43,3.65044995]
[1771580300228,0.73024113,84.439,84.38,0.71076428]
[1771580300556,0.73024113,84.429,84.401,0.71076428]
[1771580300842,0.73024113,84.429,84.41,4.36121423]
[1771580301042,3.65044995,84.44,84.411,0.71076428]
[1771580301243,0.73024113,84.439,84.411,0.71076428]
[1771580301742,0.73024113,84.439,84.413,0.71076428]
[1771580303446,0.73024113,84.439,84.415,0.71076428]
[1771580304526,0.73024113,84.447,84.421,0.71076428]
[1771580307144,0.73024113,84.447,84.422,11.8452536]
[1771580309241,0.73024113,84.447,84.423,0.71076428]
[1771580309447,0.73024113,84.447,84.43,3.65044995]
[1771580311454,0.73024113,84.447,84.431,11.84399095]
[1771580313355,0.73024113,84.464,84.432,0.71076428]
[1771580313855,0.73024113,84.464,84.44,3.65044995]
[1771580314655,0.73024113,84.464,84.433,0.71076428]
[1771580317159,29.5931826,84.479,84.45,3.65044995]
[1771580317160,0.82791772,84.479,84.45,3.65044995]
[1771580317559,0.82791772,84.479,84.42,3.65044995]
[1771580317560,0.79607587,84.459,84.42,3.65044995]
[1771580317860,0.82791772,84.463,84.44,3.65044995]
[1771580319163,0.82791772,84.463,84.45,3.65044995]
[1771580319559,0.82791772,84.463,84.441,0.79606609]
[1771580321543,0.82791772,84.461,84.442,12.63851416]
[1771580321746,0.82791772,84.459,84.44,3.65044995]
[1771580322048,1.184357,84.458,84.44,3.65044995]
[1771580322252,2.01227472,84.458,84.44,3.65044995]
[1771580322767,0.82791772,84.457,84.44,3.65044995]
[1771580322961,1.184357,84.456,84.44,3.65044995]
[1771580323563,2.01227472,84.456,84.44,3.65044995]
[1771580323864,12.6685429,84.455,84.431,0.79606609]
[1771580324163,1.184357,84.454,84.431,0.79606609]
[1771580324651,1.184357,84.454,84.44,3.64036486]
[1771580324860,0.75801728,84.461,84.44,3.64036486]
[1771580325051,1.94894974,84.46,84.44,3.64036486]
[1771580325248,0.76459274,84.459,84.44,3.64036486]
[1771580325448,1.184357,84.458,84.44,3.64036486]
[1771580325764,11.83952509,84.463,84.436,0.79606609]
[1771580325765,0.76459274,84.469,84.45,4.43643095]
[1771580325970,1.184357,84.468,84.451,0.79606609]
[1771580326151,0.77109267,84.474,84.451,0.79606609]
[1771580326465,0.77109267,84.472,84.445,0.79606609]
[1771580326666,0.77109267,84.47,84.445,0.79606609]
[1771580326866,1.95544967,84.469,84.445,0.79606609]
[1771580327648,0.77751795,84.468,84.445,0.79606609]
[1771580327855,1.184357,84.469,84.441,11.84258831]
[1771580327856,0.77751795,84.466,84.441,11.84258831]
[1771580328170,0.77751795,84.464,84.441,11.84258831]
[1771580328469,0.77751795,84.464,84.42,3.64036486]
[1771580328470,0.78386942,84.459,84.417,0.79606609]
[1771580328677,0.78386942,84.457,84.421,0.79606609]
[1771580328981,0.78386942,84.455,84.421,0.79606609]
[1771580329277,0.78955546,84.453,84.421,0.79606609]
[1771580329569,0.78955546,84.451,84.421,0.79606609]
[1771580329766,0.78955546,84.449,84.422,11.8452536]
[1771580329977,0.78955546,84.449,84.423,0.79606609]
[1771580330156,0.79517619,84.448,84.423,0.79606609]
[1771580331271,1.98508936,84.447,84.423,0.79606609]
[1771580335376,0.82232615,84.446,84.424,12.64103908]
[1771580335585,1.184357,84.445,84.424,12.64103908]
[1771580337174,0.82791772,84.444,84.418,0.79606609]
[1771580337358,0.82791772,84.442,84.418,0.79606609]
[1771580337556,0.82791772,84.44,84.41,3.64036486]
[1771580337775,0.82791772,84.44,84.401,0.79606609]
[1771580337776,0.82791772,84.438,84.401,0.79606609]
[1771580338672,0.82791772,84.438,84.411,0.79606609]
[1771580338880,1.184357,84.447,84.421,0.79606609]
[1771580339378,2.01227472,84.449,84.423,0.79606609]
[1771580339686,1.184357,84.448,84.423,0.79606609]
[1771580339976,3.64036486,84.46,84.423,0.79606609]
[1771580339977,2.01227472,84.453,84.423,0.79606609]
[1771580340467,0.82791772,84.452,84.423,0.79606609]
[1771580340668,1.184357,84.451,84.423,0.79606609]
[1771580341071,0.82791772,84.488,84.441,0.79606609]
[1771580341382,0.82791772,84.479,84.443,0.79606609]
[1771580342078,0.82791772,84.479,84.451,0.79606609]
[1771580343475,0.82791772,84.479,84.45,3.64036486]
[1771580343476,0.82791772,84.479,84.453,0.79606609]
[1771580343666,11.83668105,84.484,84.461,0.79606609]
[1771580344180,0.87214015,84.483,84.461,0.79606609]
[1771580344884,0.9280843,84.469,84.43,3.64036486]
[1771580345179,0.9280843,84.459,84.43,3.64036486]
[1771580346481,0.9280843,84.457,84.42,3.64036486]
[1771580346785,0.9280843,84.457,84.421,0.88757778]
[1771580348685,0.9280843,84.457,84.42,3.64036486]
[1771580348686,0.8740066,84.455,84.423,0.88890626]